fUST/lending_fUST_20240725
["ID","MTS","AMOUNT","RATE_DAILY","PERIOD"]
[333085578,1721853038752,-300.0,0.00013687,2]
[333085579,1721853038764,-1735.6,0.00013688,2]
[333085580,1721853038776,-17399.0540909,0.00013688,2]
[333085581,1721853038789,-12109.36413376,0.00013698,2]
[333085582,1721853038800,-500.0,0.00013698,2]
[333085583,1721853038811,-500.0,0.00013698,2]
[333085584,1721853038821,-968.72,0.00013698,2]
[333085585,1721853038831,-500.0,0.00013698,2]
[333085586,1721853038841,-500.0,0.00013698,2]
[333085587,1721853038851,-500.0,0.00013698,2]
[333085588,1721853038861,-500.0,0.00013698,2]
[333085589,1721853038870,-622.14,0.00013698,2]
[333085590,1721853038881,-500.0,0.00013698,2]
[333085591,1721853038891,-1667.65,0.00013698,2]
[333085592,1721853038901,-500.0,0.00013698,2]
[333085593,1721853038911,-500.0,0.00013698,2]
[333085594,1721853038921,-500.0,0.00013698,2]
[333085595,1721853038932,-518.12237967,0.00013698,2]
[333085596,1721853038942,-500.0,0.00013698,2]
[333085597,1721853038954,-302.76904216,0.00013698,2]
[333085598,1721853038964,-500.0,0.00013698,2]
[333085599,1721853038974,-500.0,0.00013698,2]
[333085600,1721853038983,-500.0,0.00013698,2]
[333085601,1721853038994,-500.0,0.00013698,2]
[333085602,1721853039004,-500.0,0.00013698,2]
[333085603,1721853039015,-500.0,0.00013698,2]
[333085604,1721853039026,-500.0,0.00013698,2]
[333085605,1721853039038,-500.0,0.00013698,2]
[333085606,1721853039048,-500.0,0.00013698,2]
[333085607,1721853039057,-500.0,0.00013698,2]
[333085608,1721853039067,-500.0,0.00013698,2]
[333085609,1721853039077,-500.0,0.00013698,2]
[333085610,1721853039087,-500.0,0.00013698,2]
[333085611,1721853039098,-411.3559246,0.00013698,2]
[333085612,1721853039108,-500.0,0.00013698,2]
[333085613,1721853039119,-500.0,0.00013698,2]
[333085614,1721853039130,-500.0,0.00013698,2]
[333085615,1721853039139,-500.0,0.00013698,2]
[333085616,1721853039149,-500.0,0.00013698,2]
[333085617,1721853039158,-799.22,0.00013698,2]
[333085618,1721853039169,-500.0,0.00013698,2]
[333085619,1721853039181,-500.0,0.00013698,2]
[333085620,1721853039192,-500.0,0.00013698,2]
[333085621,1721853039201,-500.0,0.00013698,2]
[333085622,1721853039211,-648.42,0.00013698,2]
[333085623,1721853039221,-500.0,0.00013698,2]
[333085624,1721853039231,-500.0,0.00013698,2]
[333085625,1721853039241,-1866.52,0.00013698,2]
[333085626,1721853039251,-500.0,0.00013698,2]
[333085627,1721853039262,-500.0,0.00013698,2]
[333085628,1721853039274,-2163.78,0.00013698,2]
[333085629,1721853039285,-500.0,0.00013698,2]
[333085630,1721853039297,-1508.0,0.00013698,2]
[333085631,1721853039307,-500.0,0.00013698,2]
[333085632,1721853039317,-500.0,0.00013698,2]
[333085633,1721853039328,-547.56,0.00013698,2]
[333085634,1721853039341,-500.0,0.00013698,2]
[333085635,1721853039352,-500.0,0.00013698,2]
[333085636,1721853039362,-500.0,0.00013698,2]
[333085637,1721853039373,-500.0,0.00013698,2]
[333085638,1721853039383,-500.0,0.00013698,2]
[333085639,1721853039394,-2952.41,0.00013698,2]
[333085640,1721853039404,-500.0,0.00013698,2]
[333085641,1721853039413,-500.0,0.00013698,2]
[333085642,1721853039423,-500.0,0.00013698,2]
[333085643,1721853039434,-500.0,0.00013698,2]
[333085644,1721853039445,-502.31498446,0.00013698,2]
[333085645,1721853039455,-600.09,0.00013698,2]
[333085646,1721853039465,-500.0,0.00013698,2]
[333085647,1721853039646,-500.0,0.00013698,2]
[333085648,1721853039656,-500.0,0.00013698,2]
[333085649,1721853039667,-500.57129976,0.00013698,2]
[333085650,1721853039678,-500.0,0.00013698,2]
[333085651,1721853039688,-1725.44,0.00013698,2]
[333085652,1721853039698,-500.0,0.00013698,2]
[333085653,1721853039708,-1046.16,0.00013698,2]
[333085654,1721853039718,-500.0,0.00013698,2]
[333085655,1721853039729,-500.0,0.00013698,2]
[333085656,1721853039741,-500.0,0.00013698,2]
[333085657,1721853039751,-1105.75,0.00013698,2]
[333085658,1721853039761,-500.0,0.00013698,2]
[333085659,1721853039770,-500.0,0.00013698,2]
[333085660,1721853039781,-500.0,0.00013698,2]
[333085661,1721853039790,-234.57271414,0.00013698,2]
[333085662,1721853039800,-500.0,0.00013698,2]
[333085663,1721853039809,-1102.17,0.00013698,2]
[333085664,1721853039819,-500.0,0.00013698,2]
[333085665,1721853039830,-500.0,0.00013698,2]
[333085666,1721853039841,-500.0,0.00013698,2]
[333085667,1721853039850,-1771.59,0.00013698,2]
[333085668,1721853039860,-500.0,0.00013698,2]
[333085670,1721853039870,-646.95,0.00013698,2]
[333085672,1721853039882,-500.0,0.00013698,2]
[333085673,1721853039893,-500.0,0.00013698,2]
[333085674,1721853039902,-662.16,0.00013698,2]
[333085675,1721853039912,-500.0,0.00013698,2]
[333085677,1721853039923,-500.0,0.00013698,2]
[333085679,1721853039932,-500.0,0.00013698,2]
[333085680,1721853039942,-500.0,0.00013698,2]
[333085682,1721853039952,-500.0,0.00013698,2]
[333085683,1721853039961,-502.3,0.00013698,2]
[333085684,1721853039971,-1543.99,0.00013698,2]
[333085685,1721853039980,-500.0,0.00013698,2]
[333085686,1721853039991,-488.59552143,0.00013698,2]
[333085687,1721853040001,-1524.48,0.00013698,2]
[333085688,1721853040012,-500.0,0.00013698,2]
[333085689,1721853040022,-607.93,0.00013698,2]
[333085690,1721853040033,-500.0,0.00013698,2]
[333085691,1721853040043,-500.0,0.00013698,2]
[333085692,1721853040053,-500.0,0.00013698,2]
[333085693,1721853040062,-628.43,0.00013698,2]
[333085694,1721853040072,-500.0,0.00013698,2]
[333085695,1721853040083,-500.0,0.00013698,2]
[333085696,1721853040092,-689.75,0.00013698,2]
[333085697,1721853040103,-500.0,0.00013698,2]
[333085698,1721853040113,-720.69,0.00013698,2]
[333085699,1721853040125,-500.0,0.00013698,2]
[333085700,1721853040136,-1505.22,0.00013698,2]
[333085701,1721853040148,-500.0,0.00013698,2]
[333085703,1721853040158,-500.0,0.00013698,2]
[333085704,1721853040168,-500.0,0.00013698,2]
[333085705,1721853040179,-500.0,0.00013698,2]
[333085706,1721853040190,-500.0,0.00013698,2]
[333085707,1721853040200,-500.0,0.00013698,2]
[333085708,1721853040210,-500.0,0.00013698,2]
[333085709,1721853040219,-500.0,0.00013698,2]
[333085710,1721853040230,-500.0,0.00013698,2]
[333085711,1721853040241,-500.0,0.00013698,2]
[333085712,1721853040253,-500.0,0.00013698,2]
[333085713,1721853040264,-1604.19,0.00013698,2]
[333085715,1721853040278,-500.0,0.00013698,2]
[333085718,1721853040298,-287.80781033,0.00013698,2]
[333085719,1721853040311,-500.0,0.00013698,2]
[333085720,1721853040322,-500.0,0.00013698,2]
[333085721,1721853040334,-500.0,0.00013698,2]
[333085722,1721853040345,-1058.29,0.00013698,2]
[333085723,1721853040357,-500.0,0.00013698,2]
[333085724,1721853040368,-1113.18,0.00013698,2]
[333085725,1721853040379,-500.0,0.00013698,2]
[333085727,1721853040390,-1083.15,0.00013698,2]
[333085729,1721853040401,-1346.94,0.00013698,2]
[333085730,1721853040412,-500.0,0.00013698,2]
[333085731,1721853040423,-598.98166969,0.00013698,2]
[333085732,1721853040433,-1140.09,0.00013698,2]
[333085733,1721853040443,-383.67073235,0.00013698,2]
[333085734,1721853040453,-500.0,0.00013698,2]
[333085735,1721853040464,-500.0,0.00013698,2]
[333085736,1721853040475,-500.0,0.00013698,2]
[333085737,1721853040485,-500.0,0.00013698,2]
[333085738,1721853040495,-500.0,0.00013698,2]
[333085739,1721853040505,-393.38,0.00013698,2]
[333085740,1721853040515,-292.51694039,0.00013698,2]
[333085741,1721853040526,-500.0,0.00013698,2]
[333085742,1721853040535,-1995.44,0.00013698,2]
[333085743,1721853040546,-500.0,0.00013698,2]
[333085744,1721853040556,-500.0,0.00013698,2]
[333085745,1721853040566,-500.0,0.00013698,2]
[333085746,1721853040578,-578.3,0.00013698,2]
[333085747,1721853040588,-500.0,0.00013698,2]
[333085748,1721853040600,-500.0,0.00013698,2]
[333085749,1721853040610,-500.0,0.00013698,2]
[333085750,1721853040620,-500.0,0.00013698,2]
[333085751,1721853040630,-500.0,0.00013698,2]
[333085752,1721853040640,-1012.63,0.00013698,2]
[333085753,1721853040650,-500.0,0.00013698,2]
[333085754,1721853040660,-500.0,0.00013698,2]
[333085755,1721853040672,-500.0,0.00013698,2]
[333085756,1721853040682,-500.0,0.00013698,2]
[333085757,1721853040693,-1098.8,0.00013698,2]
[333085758,1721853040703,-500.0,0.00013698,2]
[333085759,1721853040713,-567.29295055,0.00013698,2]
[333085760,1721853040724,-500.0,0.00013698,2]
[333085761,1721853040733,-500.0,0.00013698,2]
[333085762,1721853040743,-500.0,0.00013698,2]
[333085763,1721853040753,-500.0,0.00013698,2]
[333085764,1721853040763,-500.0,0.00013698,2]
[333085765,1721853040773,-510.73957969,0.00013698,2]
[333085766,1721853040783,-500.0,0.00013698,2]
[333085767,1721853040793,-500.0,0.00013698,2]
[333085768,1721853040802,-500.0,0.00013698,2]
[333085769,1721853040813,-2206.75,0.00013698,2]
[333085770,1721853040823,-500.0,0.00013698,2]
[333085771,1721853040835,-500.0,0.00013698,2]
[333085772,1721853040847,-1291.18,0.00013698,2]
[333085773,1721853040857,-500.0,0.00013698,2]
[333085774,1721853040866,-500.0,0.00013698,2]
[333085775,1721853040877,-500.0,0.00013698,2]
[333085776,1721853040888,-4715.72,0.00013698,2]
[333085777,1721853040899,-500.0,0.00013698,2]
[333085778,1721853040911,-500.0,0.00013698,2]
[333085779,1721853040921,-661.95,0.00013698,2]
[333085780,1721853040931,-500.0,0.00013698,2]
[333085781,1721853040940,-1343.3,0.00013698,2]
[333085782,1721853040950,-500.0,0.00013698,2]
[333085783,1721853040960,-500.0,0.00013698,2]
[333085784,1721853040969,-925.83,0.00013698,2]
[333085785,1721853040979,-9611.48,0.00013698,2]
[333085786,1721853040988,-500.0,0.00013698,2]
[333085787,1721853040998,-869.06,0.00013698,2]
[333085788,1721853041009,-500.0,0.00013698,2]
[333085789,1721853041020,-500.0,0.00013698,2]
[333085790,1721853041029,-4407.33,0.00013698,2]
[333085791,1721853041039,-500.0,0.00013698,2]
[333085792,1721853041049,-501.22068787,0.00013698,2]
[333085793,1721853041059,-2066.83,0.00013698,2]
[333085794,1721853041068,-500.0,0.00013698,2]
[333085795,1721853041078,-500.0,0.00013698,2]
[333085796,1721853041088,-1601.02,0.00013698,2]
[333085797,1721853041098,-678.46,0.00013698,2]
[333085798,1721853041107,-247.20075316,0.00013698,2]
[333085799,1721853041116,-783.94,0.00013698,2]
[333085800,1721853041130,-500.0,0.00013698,2]
[333085801,1721853041140,-508.72670725,0.00013698,2]
[333085802,1721853041150,-5788.53,0.00013698,2]
[333085803,1721853041159,-5788.53,0.00013698,2]
[333085804,1721853041169,-5788.53,0.00013698,2]
[333085805,1721853041179,-5788.53,0.00013698,2]
[333085806,1721853041188,-503.77700133,0.00013698,2]
[333085807,1721853041198,-5788.53,0.00013698,2]
[333085808,1721853041208,-5788.53,0.00013698,2]
[333085809,1721853041217,-5788.53,0.00013698,2]
[333085810,1721853041227,-5788.53,0.00013698,2]
[333085811,1721853041237,-500.0,0.00013698,2]
[333085812,1721853041247,-5788.53,0.00013698,2]
[333085813,1721853041256,-500.0,0.00013698,2]
[333085814,1721853041268,-500.0,0.00013698,2]
[333085815,1721853041282,-500.0,0.00013698,2]
[333085816,1721853041291,-178.99459703,0.00013698,2]
[333085817,1721853041300,-500.0,0.00013698,2]
[333085818,1721853041312,-500.0,0.00013698,2]
[333085819,1721853041324,-538.16,0.00013698,2]
[333085820,1721853041336,-2566.19,0.00013698,2]
[333085821,1721853041347,-500.0,0.00013698,2]
[333085822,1721853041356,-500.0,0.00013698,2]
[333085823,1721853041366,-828.71,0.00013698,2]
[333085824,1721853041376,-500.0,0.00013698,2]
[333085825,1721853041386,-500.0,0.00013698,2]
[333085826,1721853041397,-1817.38,0.00013698,2]
[333085827,1721853041409,-171.17220993,0.00013698,2]
[333085828,1721853041420,-500.0,0.00013698,2]
[333085829,1721853041430,-516.42469456,0.00013698,2]
[333085830,1721853041440,-500.0,0.00013698,2]
[333085831,1721853041450,-1470.24,0.00013698,2]
[333085832,1721853041460,-500.0,0.00013698,2]
[333085833,1721853041470,-4298.36,0.00013698,2]
[333085834,1721853041479,-500.0,0.00013698,2]
[333085835,1721853041490,-502.71235514,0.00013698,2]
[333085836,1721853041500,-500.0,0.00013698,2]
[333085837,1721853041510,-500.0,0.00013698,2]
[333085838,1721853041519,-2419.28,0.00013698,2]
[333085839,1721853041529,-500.0,0.00013698,2]
[333085840,1721853041539,-500.0,0.00013698,2]
[333085841,1721853041549,-500.0,0.00013698,2]
[333085842,1721853041559,-619.79,0.00013698,2]
[333085843,1721853041568,-500.0,0.00013698,2]
[333085844,1721853041578,-273.02582686,0.00013698,2]
[333085845,1721853041587,-13072.18,0.00013698,2]
[333085846,1721853041597,-499.99813913,0.00013698,2]
[333085847,1721853041607,-500.0,0.00013698,2]
[333085848,1721853041617,-500.0,0.00013698,2]
[333085849,1721853041626,-500.0,0.00013698,2]
[333085850,1721853041636,-500.0,0.00013698,2]
[333085851,1721853041645,-500.0,0.00013698,2]
[333085852,1721853041665,-4180.8,0.00013698,2]
[333085853,1721853041680,-764.34,0.00013698,2]
[333085854,1721853041693,-6163.33,0.00013698,2]
[333085855,1721853041706,-1263.95,0.00013698,2]
[333085856,1721853041720,-553.23,0.00013698,2]
[333085857,1721853041733,-2549.31,0.00013698,2]
[333085858,1721853041745,-1536.47,0.00013698,2]
[333085859,1721853041756,-500.0,0.00013698,2]
[333085860,1721853041767,-4014.66,0.00013698,2]
[333085861,1721853041780,-2483.18,0.00013698,2]
[333085862,1721853041792,-500.0,0.00013698,2]
[333085863,1721853041807,-500.0,0.00013698,2]
[333085864,1721853041820,-2922.22,0.00013698,2]
[333085865,1721853041833,-500.0,0.00013698,2]
[333085866,1721853041845,-910.28,0.00013698,2]
[333085867,1721853041857,-500.0,0.00013698,2]
[333085868,1721853041870,-1578.42,0.00013698,2]
[333085869,1721853041882,-500.0,0.00013698,2]
[333085870,1721853041895,-500.0,0.00013698,2]
[333085871,1721853041909,-790.16,0.00013698,2]
[333085872,1721853041920,-9731.69,0.00013698,2]
[333085873,1721853041932,-500.0,0.00013698,2]
[333085874,1721853041943,-500.0,0.00013698,2]
[333085875,1721853041954,-500.0,0.00013698,2]
[333085876,1721853041967,-500.0,0.00013698,2]
[333085877,1721853041980,-1809.8,0.00013698,2]
[333085878,1721853041993,-561.12,0.00013698,2]
[333085879,1721853042005,-500.0,0.00013698,2]
[333085880,1721853042018,-500.0,0.00013698,2]
[333085881,1721853042029,-500.0,0.00013698,2]
[333085882,1721853042041,-500.0,0.00013698,2]
[333085883,1721853042051,-4411.73,0.00013698,2]
[333085884,1721853042062,-500.0,0.00013698,2]
[333085885,1721853042072,-500.0,0.00013698,2]
[333085886,1721853042084,-500.0,0.00013698,2]
[333085887,1721853042096,-1683.33,0.00013698,2]
[333085888,1721853042108,-7978.32,0.00013698,2]
[333085889,1721853042122,-500.0,0.00013698,2]
[333085890,1721853042134,-832.31,0.00013698,2]
[333085891,1721853042147,-500.0,0.00013698,2]
[333085892,1721853042160,-1250.74,0.00013698,2]
[333085893,1721853042171,-500.0,0.00013698,2]
[333085894,1721853042182,-500.0,0.00013698,2]
[333085895,1721853042195,-500.0,0.00013698,2]
[333085896,1721853042207,-500.0,0.00013698,2]
[333085897,1721853042219,-5067.92,0.00013698,2]
[333085898,1721853042231,-500.0,0.00013698,2]
[333085899,1721853042243,-471.06056895,0.00013698,2]
[333085900,1721853042254,-1629.66,0.00013698,2]
[333085901,1721853042264,-514.58,0.00013698,2]
[333085902,1721853042277,-500.0,0.00013698,2]
[333085903,1721853042288,-500.0,0.00013698,2]
[333085904,1721853042298,-1851.9,0.00013698,2]
[333085905,1721853042310,-500.0,0.00013698,2]
[333085906,1721853042322,-283.39585514,0.00013698,2]
[333085907,1721853042335,-500.0,0.00013698,2]
[333085908,1721853042349,-500.0,0.00013698,2]
[333085909,1721853042361,-155.0920539,0.00013698,2]
[333085910,1721853042373,-795.53925641,0.00013698,2]
[333085911,1721853042384,-500.0,0.00013698,2]
[333085912,1721853042394,-643.3553404,0.00013698,2]
[333085913,1721853042408,-500.0,0.00013698,2]
[333085914,1721853042426,-795.53925641,0.00013698,2]
[333085915,1721853042442,-500.0,0.00013698,2]
[333085916,1721853042461,-795.53925641,0.00013698,2]
[333085917,1721853042476,-795.53925641,0.00013698,2]
[333085918,1721853042492,-500.0,0.00013698,2]
[333085919,1721853042503,-795.53925641,0.00013698,2]
[333085920,1721853042514,-795.53925641,0.00013698,2]
[333085921,1721853042524,-500.0,0.00013698,2]
[333085922,1721853042535,-500.0,0.00013698,2]
[333085923,1721853042547,-795.53925641,0.00013698,2]
[333085924,1721853042559,-500.0,0.00013698,2]
[333085925,1721853042572,-500.0,0.00013698,2]
[333085926,1721853042583,-795.53925641,0.00013698,2]
[333085927,1721853042596,-795.53925641,0.00013698,2]
[333085928,1721853042608,-260.14466362,0.00013698,2]
[333085929,1721853042620,-795.53925641,0.00013698,2]
[333085930,1721853042633,-795.53925641,0.00013698,2]
[333085931,1721853042645,-795.53925641,0.00013698,2]
[333085932,1721853042658,-795.53925641,0.00013698,2]
[333085933,1721853042671,-500.0,0.00013698,2]
[333085934,1721853042684,-500.0,0.00013698,2]
[333085935,1721853042697,-795.53925641,0.00013698,2]
[333085936,1721853042709,-500.0,0.00013698,2]
[333085937,1721853042722,-795.53925641,0.00013698,2]
[333085938,1721853042734,-500.0,0.00013698,2]
[333085939,1721853042746,-500.0,0.00013698,2]
[333085940,1721853042758,-500.0,0.00013698,2]
[333085941,1721853042769,-500.0,0.00013698,2]
[333085942,1721853042786,-500.0,0.00013698,2]
[333085943,1721853042799,-500.0,0.00013698,2]
[333085944,1721853042811,-500.0,0.00013698,2]
[333085946,1721853042823,-500.0,0.00013698,2]
[333085949,1721853042834,-500.0,0.00013698,2]
[333085951,1721853042846,-500.0,0.00013698,2]
[333085953,1721853042857,-500.0,0.00013698,2]
[333085955,1721853042869,-500.0,0.00013698,2]
[333085957,1721853042880,-500.0,0.00013698,2]
[333085960,1721853042892,-500.0,0.00013698,2]
[333085961,1721853042903,-500.0,0.00013698,2]
[333085962,1721853042915,-500.0,0.00013698,2]
[333085963,1721853042926,-500.0,0.00013698,2]
[333085964,1721853042937,-500.0,0.00013698,2]
[333085965,1721853042948,-500.0,0.00013698,2]
[333085966,1721853042960,-500.0,0.00013698,2]
[333085967,1721853042971,-500.0,0.00013698,2]
[333085969,1721853042983,-500.0,0.00013698,2]
[333085971,1721853042994,-500.0,0.00013698,2]
[333085973,1721853043006,-500.0,0.00013698,2]
[333085976,1721853043018,-500.0,0.00013698,2]
[333085978,1721853043029,-683.13,0.00013698,2]
[333085980,1721853043039,-366.29564877,0.00013698,2]
[333085982,1721853043051,-1017.398271,0.00013699,2]
[333085983,1721853043062,-3000.0,0.00013699,2]
[333085986,1721853043074,-150.112233,0.000137,2]
[333085989,1721853043085,-150.112233,0.000138,2]
[333085990,1721853043096,-1298.47333622,0.00013872,2]
[333085991,1721853043106,-150.0,0.00013893,2]
[333085992,1721853043118,-505.0,0.00013893,2]
[333085994,1721853043129,-1409.0,0.00013893,2]
[333085996,1721853043140,-150.112233,0.000139,2]
[333085998,1721853043152,-2485.57915584,0.0001396,2]
[333085999,1721853043165,-7456.73746752,0.00013961,2]
[333086000,1721853043176,-2485.57915584,0.00013961,2]
[333086002,1721853043187,-12427.8957792,0.00013962,2]
[333086003,1721853043197,-5788.53,0.0001397,2]
[333086004,1721853043209,-166586.45542303,0.0001397,5]
[333086005,1721853043222,-5788.53,0.00013971,2]
[333086006,1721853043235,-5788.53,0.00013971,2]
[333086007,1721853043247,-5788.53,0.00013971,2]
[333086009,1721853043258,-5788.53,0.00013971,2]
[333086011,1721853043271,-5788.53,0.00013971,2]
[333086013,1721853043281,-5788.53,0.00013971,2]
[333086015,1721853043292,-5788.53,0.00013971,2]
[333086017,1721853043304,-5788.53,0.00013971,2]
[333086019,1721853043316,-5788.53,0.00013971,2]
[333086021,1721853043327,-151.0,0.00013972,2]
[333086023,1721853043340,-151.959013,0.00013972,2]
[333086024,1721853043352,-500.0,0.00013972,2]
[333086025,1721853043363,-500.0,0.00013972,2]
[333086027,1721853043374,-968.72,0.00013972,2]
[333086029,1721853043386,-500.0,0.00013972,2]
[333086031,1721853043396,-500.0,0.00013972,2]
[333086032,1721853043407,-500.0,0.00013972,2]
[333086034,1721853043418,-622.14,0.00013972,2]
[333086036,1721853043430,-500.0,0.00013972,2]
[333086038,1721853043441,-1667.65,0.00013972,2]
[333086039,1721853043452,-500.0,0.00013972,2]
[333086040,1721853043464,-500.0,0.00013972,2]
[333086042,1721853043475,-500.0,0.00013972,2]
[333086044,1721853043486,-500.0,0.00013972,2]
[333086046,1721853043496,-501.48343815,0.00013972,2]
[333086048,1721853043508,-500.0,0.00013972,2]
[333086049,1721853043519,-500.0,0.00013972,2]
[333086050,1721853043530,-799.22,0.00013972,2]
[333086051,1721853043542,-500.0,0.00013972,2]
[333086053,1721853043552,-500.0,0.00013972,2]
[333086055,1721853043563,-500.0,0.00013972,2]
[333086056,1721853043574,-648.42,0.00013972,2]
[333086057,1721853043587,-649.32103594,0.00013972,2]
[333086058,1721853043599,-1866.52,0.00013972,2]
[333086059,1721853043611,-500.0,0.00013972,2]
[333086060,1721853043623,-2163.78,0.00013972,2]
[333086061,1721853043635,-500.0,0.00013972,2]
[333086062,1721853043647,-1508.0,0.00013972,2]
[333086063,1721853043659,-500.0,0.00013972,2]
[333086064,1721853043670,-500.0,0.00013972,2]
[333086065,1721853043682,-547.56,0.00013972,2]
[333086066,1721853043693,-500.0,0.00013972,2]
[333086067,1721853043704,-500.0,0.00013972,2]
[333086068,1721853043716,-508.97254975,0.00013972,2]
[333086069,1721853043727,-2952.41,0.00013972,2]
[333086070,1721853043739,-500.0,0.00013972,2]
[333086071,1721853043750,-500.0,0.00013972,2]
[333086072,1721853043761,-500.0,0.00013972,2]
[333086073,1721853043772,-151.0,0.00013972,2]
[333086074,1721853043784,-227.16455224,0.00013972,2]
[333086075,1721853043795,-600.09,0.00013972,2]
[333086076,1721853043807,-500.0,0.00013972,2]
[333086077,1721853043818,-615.84691662,0.00013972,2]
[333086078,1721853043830,-219.65952288,0.00013972,2]
[333086079,1721853043841,-1725.44,0.00013972,2]
[333086080,1721853043853,-246.08483113,0.00013972,2]
[333086081,1721853043864,-1046.16,0.00013972,2]
[333086082,1721853043875,-500.0,0.00013972,2]
[333086083,1721853043886,-500.0,0.00013972,2]
[333086084,1721853043898,-1105.75,0.00013972,2]
[333086085,1721853043909,-500.0,0.00013972,2]
[333086086,1721853043919,-500.0,0.00013972,2]
[333086087,1721853043929,-1102.17,0.00013972,2]
[333086088,1721853044162,-500.0,0.00013972,2]
[333086089,1721853044182,-500.0,0.00013972,2]
[333086090,1721853044192,-500.0,0.00013972,2]
[333086091,1721853044203,-1771.59,0.00013972,2]
[333086092,1721853044213,-500.0,0.00013972,2]
[333086093,1721853044223,-646.95,0.00013972,2]
[333086094,1721853044233,-528.78,0.00013972,2]
[333086095,1721853044243,-662.16,0.00013972,2]
[333086096,1721853044253,-500.0,0.00013972,2]
[333086097,1721853044265,-500.0,0.00013972,2]
[333086098,1721853044277,-502.3,0.00013972,2]
[333086099,1721853044289,-1543.99,0.00013972,2]
[333086100,1721853044300,-1524.48,0.00013972,2]
[333086101,1721853044311,-500.0,0.00013972,2]
[333086102,1721853044320,-607.93,0.00013972,2]
[333086103,1721853044330,-500.0,0.00013972,2]
[333086104,1721853044340,-500.0,0.00013972,2]
[333086105,1721853044352,-628.43,0.00013972,2]
[333086106,1721853044363,-500.0,0.00013972,2]
[333086107,1721853044372,-689.75,0.00013972,2]
[333086108,1721853044387,-720.69,0.00013972,2]
[333086109,1721853044396,-1505.22,0.00013972,2]
[333086110,1721853044405,-500.0,0.00013972,2]
[333086111,1721853044415,-500.0,0.00013972,2]
[333086112,1721853044424,-516.21,0.00013972,2]
[333086113,1721853044432,-500.0,0.00013972,2]
[333086114,1721853044443,-500.0,0.00013972,2]
[333086115,1721853044452,-500.0,0.00013972,2]
[333086116,1721853044462,-1604.19,0.00013972,2]
[333086117,1721853044471,-500.0,0.00013972,2]
[333086118,1721853044483,-500.0,0.00013972,2]
[333086119,1721853044494,-500.0,0.00013972,2]
[333086120,1721853044504,-1058.29,0.00013972,2]
[333086121,1721853044513,-151.0,0.00013972,2]
[333086122,1721853044523,-500.0,0.00013972,2]
[333086123,1721853044533,-1113.18,0.00013972,2]
[333086124,1721853044543,-1083.15,0.00013972,2]
[333086125,1721853044552,-1346.94,0.00013972,2]
[333086126,1721853044562,-500.0,0.00013972,2]
[333086127,1721853044572,-1140.09,0.00013972,2]
[333086128,1721853044582,-500.0,0.00013972,2]
[333086129,1721853044592,-1995.44,0.00013972,2]
[333086130,1721853044602,-500.0,0.00013972,2]
[333086131,1721853044612,-578.3,0.00013972,2]
[333086132,1721853044622,-500.0,0.00013972,2]
[333086133,1721853044634,-500.0,0.00013972,2]